bitfinex-derivatives/quotes_BTCF0:USTF0_20240917
["timestamp","ask_amount","ask_price","bid_price","bid_amount"]
[1726553055810,1.0637627,58589.0,58588.0,0.12902]
[1726553057615,2.1758027,58589.0,58588.0,0.12902]
[1726553060616,0.085359,58579.0,58578.0,0.05079152]
[1726553060808,0.085364,58575.0,58574.0,0.0496]
[1726553061008,0.085764,58575.0,58574.0,0.0496]
[1726553061208,0.085364,58575.0,58574.0,0.0496]
[1726553061912,0.084364,58575.0,58574.0,0.13420627]
[1726553062119,0.085364,58575.0,58574.0,0.13620627]
[1726553062420,0.085364,58575.0,58574.0,0.0516]
[1726553063107,0.085364,58575.0,58574.0,0.002]
[1726553063302,0.086364,58575.0,58574.0,0.002]
[1726553064907,0.09488697,58575.0,58574.0,0.002]
[1726553065613,0.18025097,58575.0,58574.0,0.05274383]
[1726553066209,0.18025097,58575.0,58574.0,0.002]
[1726553066405,0.18025097,58575.0,58574.0,0.05274383]
[1726553066923,0.18025097,58575.0,58574.0,0.002]
[1726553067111,0.18025097,58575.0,58574.0,0.05273548]
[1726553067313,0.18025097,58575.0,58574.0,0.05272922]
[1726553067914,0.086364,58575.0,58574.0,0.05272922]
[1726553068208,0.086364,58575.0,58574.0,0.06967203]
[1726553068520,0.086364,58575.0,58574.0,0.002]
[1726553069315,0.086364,58575.0,58574.0,0.06963617]
[1726553069616,0.086364,58575.0,58574.0,0.002]
[1726553071813,0.086364,58575.0,58574.0,0.06964136]
[1726553072325,0.086364,58575.0,58574.0,0.002]
[1726553073119,0.447164,58575.0,58574.0,0.002]
[1726553073525,0.447164,58575.0,58574.0,0.06964929]
[1726553074421,0.447164,58575.0,58574.0,0.002]
[1726553074822,0.447164,58575.0,58574.0,0.05274632]
[1726553075327,0.447164,58575.0,58574.0,0.002]
[1726553076129,0.532528,58575.0,58574.0,0.002]
[1726553076333,0.447164,58575.0,58574.0,0.002]
[1726553077318,0.532528,58575.0,58574.0,0.002]
[1726553078429,0.532528,58575.0,58574.0,0.05275842]
[1726553078736,0.532528,58575.0,58574.0,0.002]
[1726553080922,0.447164,58575.0,58574.0,0.002]
[1726553082321,0.447164,58575.0,58574.0,0.05279557]
[1726553082526,0.447164,58575.0,58574.0,0.002]
[1726553082821,0.447164,58575.0,58574.0,0.05279607]
[1726553083424,0.447164,58575.0,58574.0,0.002]
[1726553087231,0.807964,58575.0,58574.0,0.002]
[1726553087739,0.893328,58575.0,58574.0,0.002]
[1726553088036,0.807964,58575.0,58574.0,0.002]
[1726553088636,0.893328,58575.0,58574.0,0.002]
[1726553089332,0.893328,58575.0,58574.0,0.05280141]
[1726553089837,0.893328,58575.0,58574.0,0.002]
[1726553090633,0.807964,58575.0,58574.0,0.002]
[1726553091334,0.893328,58575.0,58574.0,0.002]
[1726553093827,0.807964,58575.0,58574.0,0.002]
[1726553094435,0.893328,58575.0,58574.0,0.002]
[1726553095637,0.807964,58575.0,58574.0,0.002]
[1726553095839,0.893328,58575.0,58574.0,0.002]
[1726553096041,0.807964,58575.0,58574.0,0.002]
[1726553096941,0.807964,58575.0,58574.0,0.06966177]
[1726553097743,0.892328,58575.0,58574.0,0.06766177]
[1726553097947,0.892328,58575.0,58574.0,0.06966177]
[1726553098133,0.891328,58575.0,58574.0,0.06966177]
[1726553098333,0.805964,58575.0,58574.0,0.06966177]
[1726553099032,1.051328,58575.0,58574.0,0.06966177]
[1726553099435,0.965964,58575.0,58574.0,0.06966177]
[1726553099630,1.051328,58575.0,58574.0,0.06966177]
[1726553100135,1.051328,58575.0,58574.0,0.002]
[1726553100941,0.965964,58575.0,58574.0,0.002]
[1726553101146,1.051328,58575.0,58574.0,0.002]
[1726553102440,1.051328,58575.0,58574.0,0.05281984]
[1726553102843,0.965964,58575.0,58574.0,0.05281984]
[1726553103145,1.136692,58575.0,58574.0,0.002]
[1726553103346,0.08537,58571.0,58568.0,0.06766177]
[1726553103535,0.08537,58571.0,58561.0,0.10414448]
[1726553103536,0.170752,58567.0,58566.0,0.06766177]
[1726553103743,0.085378,58566.0,58565.0,0.06766177]
[1726553104044,0.170758,58565.0,58564.0,0.06766177]
[1726553104240,0.331158,58565.0,58564.0,0.06766177]
[1726553104436,0.08338,58564.0,58563.0,0.06766177]
[1726553104643,0.08378,58564.0,58563.0,0.06766177]
[1726553104846,0.085386,58560.0,58559.0,0.05006151]
[1726553105043,0.444586,58560.0,58559.0,0.05006151]
[1726553105653,0.442186,58560.0,58559.0,0.05006151]
[1726553106551,0.443186,58560.0,58559.0,0.05006151]
[1726553106749,0.688572,58560.0,58559.0,0.00256151]
[1726553107256,0.69691595,58560.0,58559.0,0.00256151]
[1726553107944,0.69791595,58560.0,58559.0,0.00256151]
[1726553108342,0.61252995,58560.0,58559.0,0.00256151]
[1726553108545,0.444186,58560.0,58559.0,0.00256151]
[1726553109747,0.3628,58560.0,58556.0,0.047]
[1726553109953,0.085791,58557.0,58556.0,0.047]
[1726553111453,0.086791,58557.0,58556.0,0.047]
[1726553112454,0.086791,58557.0,58551.0,0.0879607]
[1726553112653,0.086791,58557.0,58551.0,0.0025617]
[1726553112654,0.085798,58552.0,58551.0,0.0025617]
[1726553113556,0.085798,58552.0,58551.0,0.0879607]
[1726553113855,0.0004,58552.0,58551.0,0.2479607]
[1726553114057,0.0004,58552.0,58551.0,0.44544835]
[1726553114265,0.0014,58552.0,58551.0,0.36084208]
[1726553114463,0.0014,58552.0,58551.0,0.36080189]
[1726553115264,0.0014,58552.0,58551.0,0.28541315]
[1726553115452,0.0024,58552.0,58551.0,0.17257196]
[1726553115652,0.087798,58552.0,58551.0,0.0025617]
[1726553116160,0.0024,58552.0,58551.0,0.0879607]
[1726553116463,0.0024,58552.0,58551.0,0.28541658]
[1726553118362,0.0024,58552.0,58551.0,0.28540819]
[1726553118857,0.0024,58552.0,58551.0,0.28540691]
[1726553119060,0.0024,58552.0,58551.0,0.39818524]
[1726553119258,0.0024,58552.0,58551.0,0.28534062]
[1726553119654,0.0024,58552.0,58551.0,0.28518062]
[1726553119965,0.0024,58552.0,58551.0,0.2478007]
[1726553120158,0.00256171,58560.0,58551.0,1.2747617]
[1726553120363,0.00256171,58560.0,58559.0,0.245788]
[1726553120659,0.00256171,58560.0,58559.0,0.29654159]
[1726553120865,0.00256171,58560.0,58559.0,0.245788]
[1726553121055,0.00256171,58560.0,58559.0,0.29654159]
[1726553121362,0.00356171,58560.0,58559.0,0.245788]
[1726553122453,0.00456171,58560.0,58559.0,0.245788]
[1726553123259,0.00456171,58560.0,58559.0,0.246788]
[1726553124562,0.3608,58566.0,58559.0,1.359068]
[1726553124752,0.3648,58574.0,58565.0,0.05116812]
[1726553124953,0.3608,58574.0,58569.0,0.245773]
[1726553125157,0.3608,58574.0,58569.0,0.29614112]
[1726553125463,0.3608,58574.0,58569.0,0.245373]
[1726553126162,0.3648,58579.0,58569.0,1.718373]
[1726553126361,0.3648,58579.0,58578.0,0.0004]
[1726553126362,0.3608,58579.0,58578.0,0.0004]
[1726553127554,0.3608,58579.0,58578.0,0.08576]
[1726553127760,0.3668,58579.0,58578.0,0.08576]
[1726553128367,0.452159,58579.0,58578.0,0.0004]
[1726553128754,0.458159,58579.0,58578.0,0.0004]
[1726553134367,0.457879,58579.0,58578.0,0.0004]
[1726553135867,0.543238,58579.0,58578.0,0.0004]
[1726553136366,1.740717,58579.0,58578.0,0.0004]
[1726553136570,0.08537,58571.0,58570.0,0.00656103]
[1726553136773,0.24577,58571.0,58570.0,0.00256103]
[1726553136969,0.33114,58571.0,58570.0,0.00256103]
[1726553137269,0.42484,58571.0,58570.0,0.00256103]
[1726553138672,0.42484,58571.0,58570.0,0.00456103]
[1726553139478,0.78564,58571.0,58570.0,0.00456103]
[1726553139973,0.79438962,58571.0,58570.0,0.00456103]
[1726553140473,0.79438962,58571.0,58570.0,0.002]
[1726553142973,0.87975962,58571.0,58570.0,0.002]
[1726553146876,1.24055962,58571.0,58570.0,0.002]
[1726553147087,1.15518962,58571.0,58570.0,0.002]
[1726553147381,0.90148962,58571.0,58570.0,0.002]
[1726553149479,0.90148962,58571.0,58570.0,0.00196]
[1726553150482,0.81611962,58571.0,58570.0,0.00196]
[1726553153488,0.90148962,58571.0,58570.0,0.00196]
[1726553154886,1.06148962,58571.0,58570.0,0.00196]
[1726553158090,1.14685962,58571.0,58570.0,0.00196]
[1726553158494,1.14685962,58571.0,58570.0,0.01561]
[1726553160194,0.170764,58563.0,58562.0,0.004]
[1726553160396,0.3608,58563.0,58560.0,0.00256131]
[1726553160586,0.0004,58561.0,58560.0,0.00256131]
[1726553161195,0.17117,58561.0,58560.0,0.00256131]
[1726553161399,0.17077,58561.0,58560.0,0.00256131]
[1726553161597,0.16917,58561.0,58560.0,0.00256131]
[1726553161994,0.16917,58561.0,58560.0,0.06694991]
[1726553162394,0.17017,58561.0,58560.0,0.06894991]
[1726553162595,0.17017,58561.0,58560.0,0.01822131]
[1726553163305,0.17117,58561.0,58560.0,0.01822131]
[1726553164195,0.17117,58561.0,58560.0,0.01818131]
[1726553164793,0.17965912,58561.0,58560.0,0.01818131]
[1726553168102,0.54045912,58561.0,58560.0,0.01818131]
[1726553169997,0.64045912,58561.0,58560.0,0.01818131]
[1726553170899,0.72584412,58561.0,58560.0,0.01818131]
[1726553171709,0.82812006,58561.0,58560.0,0.01818131]
[1726553172105,0.72584412,58561.0,58560.0,0.01818131]
[1726553173107,1.08664412,58561.0,58560.0,0.01818131]
[1726553176508,0.36504412,58561.0,58560.0,0.01818131]
[1726553176811,1.08664412,58561.0,58560.0,0.01818131]
[1726553177604,0.36504412,58561.0,58560.0,0.01818131]
[1726553177807,1.08664412,58561.0,58560.0,0.01818131]
[1726553179410,0.98664412,58561.0,58560.0,0.01818131]
[1726553179611,1.08664412,58561.0,58560.0,0.01818131]
[1726553181111,1.08664412,58561.0,58560.0,0.01566]
[1726553186320,1.08664412,58561.0,58560.0,0.01366]
[1726553186925,0.36504412,58561.0,58560.0,0.01366]
[1726553187115,1.08664412,58561.0,58560.0,0.01366]
[1726553195020,1.04078613,58561.0,58560.0,0.01366]
[1726553196420,0.81587412,58561.0,58560.0,0.11366]
[1726553196626,0.807385,58561.0,58560.0,0.11366]
[1726553196921,0.002,58561.0,58560.0,1.22594]
[1726553197130,0.002,58561.0,58560.0,0.711326]
[1726553197321,0.002,58561.0,58560.0,1.311326]
[1726553197522,0.002,58561.0,58560.0,1.22594]
[1726553198016,0.087385,58561.0,58560.0,1.22594]
[1726553199827,0.002,58561.0,58560.0,1.311326]
[1726553200522,0.3608,58564.0,58563.0,0.085382]
[1726553200717,0.3608,58564.0,58563.0,0.185782]
[1726553200927,0.3608,58564.0,58563.0,0.698062]
[1726553201222,0.3608,58571.0,58570.0,0.085372]
[1726553201424,0.3608,58571.0,58570.0,0.185772]
[1726553202422,0.3608,58571.0,58570.0,0.199422]
[1726553202626,0.3618,58571.0,58570.0,0.199422]
[1726553202829,0.001,58571.0,58570.0,1.672422]
[1726553203018,0.1445,58590.0,58570.0,1.58705]
[1726553203220,0.1445,58590.0,58580.0,0.4608]
[1726553203221,0.085352,58584.0,58580.0,0.4608]
[1726553203726,0.085352,58584.0,58583.0,0.0004]
[1726553204031,0.085352,58584.0,58580.0,0.548437]
[1726553204227,0.0004,58581.0,58580.0,0.546557]
[1726553205420,0.0004,58581.0,58580.0,0.547557]
[1726553207922,0.0004,58581.0,58580.0,0.550557]
[1726553214622,0.085363,58576.0,58575.0,0.3648]
[1726553214825,0.185763,58576.0,58575.0,0.3608]
[1726553215232,0.08537,58571.0,58570.0,0.37445]
[1726553215426,0.18577,58571.0,58570.0,0.01365]
[1726553217034,0.0004,58571.0,58570.0,0.37445]
[1726553217235,0.0004,58571.0,58570.0,0.459822]
[1726553217419,0.0004,58571.0,58570.0,0.972022]
[1726553217624,0.0014,58571.0,58570.0,1.572022]
[1726553217927,0.0014,58571.0,58570.0,1.732022]
[1726553218630,0.0004,58571.0,58570.0,1.732022]
[1726553218829,0.0024,58571.0,58570.0,1.732022]
[1726553219234,0.0024,58571.0,58570.0,1.132022]
[1726553219435,0.0024,58571.0,58570.0,0.459822]
[1726553219636,0.08777,58571.0,58570.0,0.37445]
[1726553220430,0.08777,58571.0,58570.0,0.01365]
[1726553220924,0.08677,58571.0,58570.0,0.01365]
[1726553221133,0.08777,58571.0,58570.0,0.01665]
[1726553221535,0.08577,58571.0,58570.0,0.01365]
[1726553221736,0.08577,58571.0,58570.0,0.01565]
[1726553221932,0.08577,58571.0,58570.0,0.53645]
[1726553222238,0.0004,58571.0,58570.0,1.733022]
[1726553223325,0.0004,58571.0,58570.0,1.133022]
[1726553223835,0.0004,58571.0,58570.0,0.620822]
[1726553224436,0.0004,58571.0,58570.0,0.621822]
[1726553225236,0.0004,58571.0,58570.0,1.734022]
[1726553225429,0.0004,58571.0,58570.0,1.78469476]
[1726553226429,0.0004,58571.0,58570.0,1.734022]
[1726553227530,0.0004,58571.0,58570.0,1.80158568]
[1726553228532,0.0004,58571.0,58570.0,1.734022]
[1726553228741,0.0004,58571.0,58570.0,1.373222]
[1726553228931,0.0004,58571.0,58570.0,1.80161828]
[1726553229240,0.0004,58571.0,58570.0,1.734022]
[1726553230137,0.0004,58571.0,58570.0,1.134022]
[1726553231242,0.0004,58571.0,58570.0,1.21868455]
[1726553232238,0.0004,58571.0,58570.0,1.134022]
[1726553233346,0.0004,58571.0,58570.0,0.621822]
[1726553233535,0.0004,58571.0,58570.0,1.134022]
[1726553234337,0.0004,58571.0,58570.0,0.67254859]
[1726553234638,0.08577,58571.0,58570.0,0.621822]
[1726553238138,0.0004,58571.0,58570.0,0.621822]
[1726553239644,0.00256145,58574.0,58573.0,0.085367]
[1726553239844,0.00256145,58574.0,58573.0,0.245767]
[1726553240342,0.00256145,58574.0,58573.0,0.35662942]
[1726553240845,0.00256145,58574.0,58573.0,0.245767]
[1726553241047,0.00556145,58574.0,58573.0,0.35662022]
[1726553241345,0.0497,58579.0,58578.0,0.08536]
[1726553241642,0.0497,58579.0,58578.0,0.46021]
[1726553242249,0.0497,58579.0,58578.0,0.5447706]
[1726553243041,0.0567,58579.0,58578.0,0.5457706]
[1726553243848,0.0567,58579.0,58578.0,0.5718879]
[1726553243849,0.0627,58579.0,58578.0,0.5718879]
[1726553245852,0.0627,58579.0,58578.0,0.57190378]
[1726553247351,0.0627,58579.0,58578.0,0.65649973]
[1726553251756,0.0627,58579.0,58578.0,0.57190378]
[1726553252159,0.0627,58579.0,58578.0,0.65650134]
[1726553252759,0.148059,58579.0,58578.0,0.57114134]
[1726553252950,0.148059,58579.0,58578.0,0.37585]
[1726553254854,0.148059,58579.0,58578.0,0.46121]
[1726553256458,0.0627,58579.0,58578.0,0.46121]
[1726553262670,0.0627,58579.0,58578.0,0.54580756]
[1726553263563,0.0627,58579.0,58578.0,0.65664093]
[1726553263763,0.0627,58579.0,58578.0,0.54580756]
[1726553264462,0.0627,58579.0,58578.0,0.65668219]
[1726553264668,0.0627,58579.0,58578.0,0.54580756]
[1726553264867,0.0627,58579.0,58578.0,0.65666638]
[1726553265062,0.0627,58579.0,58578.0,0.54580756]
[1726553265263,0.0627,58579.0,58578.0,0.65668909]
[1726553265465,0.0627,58579.0,58578.0,0.65669084]
[1726553265769,0.0627,58579.0,58578.0,0.65667775]
[1726553266664,0.0627,58579.0,58578.0,0.57208019]
[1726553266862,0.0627,58579.0,58578.0,0.65675639]
[1726553267461,0.0627,58579.0,58578.0,0.57208019]
[1726553267766,0.0627,58579.0,58578.0,0.57207567]
[1726553268964,0.013,58579.0,58578.0,1.68419567]
[1726553269270,0.013,58579.0,58578.0,1.81616494]
[1726553269673,0.013,58579.0,58578.0,1.81599895]
[1726553270369,0.0924,58585.0,58578.0,1.81599895]
[1726553270370,0.0474,58585.0,58578.0,1.57333]
[1726553270569,0.0474,58585.0,58584.0,0.57198059]
[1726553270766,0.0474,58585.0,58584.0,1.718631]
[1726553270969,0.0474,58585.0,58584.0,1.78634985]
[1726553271270,0.0936,58593.0,58591.0,0.08534]
[1726553271568,0.0499,58592.0,58591.0,0.08534]
[1726553271759,0.0499,58592.0,58591.0,0.44614]
[1726553272262,0.0499,58592.0,58591.0,0.45979]
[1726553272872,0.0639,58592.0,58591.0,0.62079]
[1726553273572,0.0779,58592.0,58591.0,0.62079]
[1726553273961,0.0779,58592.0,58591.0,0.6714978]
[1726553274360,0.0779,58592.0,58591.0,0.62079]
[1726553274569,0.0779,58592.0,58591.0,0.67147528]
[1726553275167,0.0779,58592.0,58591.0,0.62079]
[1726553275474,0.0709,58592.0,58591.0,0.62079]
[1726553275787,0.0649,58592.0,58591.0,0.62179]
[1726553277367,0.0649,58592.0,58591.0,0.63063985]
[1726553278275,0.0649,58592.0,58591.0,0.37645]
[1726553278472,0.15024,58592.0,58591.0,0.30155]
[1726553278677,0.0649,58592.0,58588.0,0.00256011]
[1726553278877,0.0004,58589.0,58588.0,0.00256011]
[1726553279073,0.085744,58589.0,58588.0,0.00256011]
[1726553279967,0.090744,58589.0,58588.0,0.00356011]
[1726553280367,0.090744,58589.0,58588.0,0.01721011]
[1726553280368,0.0054,58589.0,58588.0,0.01721011]
[1726553280672,0.0054,58589.0,58588.0,0.10255511]
[1726553281470,0.0114,58589.0,58588.0,0.10255511]
[1726553282175,0.0114,58589.0,58588.0,0.01721011]
[1726553282377,0.096744,58589.0,58588.0,0.17721011]
[1726553285571,0.0114,58589.0,58588.0,0.26255511]
[1726553286174,0.3608,58601.0,58588.0,1.37459511]
[1726553286379,0.13648346,58612.0,58588.0,1.37459511]
[1726553286380,0.004,58604.0,58598.0,0.3612]
[1726553286680,0.1405,58606.0,58603.0,0.5208]
[1726553286983,0.1405,58606.0,58605.0,0.085721]
[1726553287983,0.08531,58613.0,58606.0,0.085318]
[1726553288183,0.08531,58613.0,58605.0,0.0004]
[1726553288184,0.0453,58612.0,58605.0,0.0004]
[1726553288480,0.008,58604.0,58603.0,0.5208]
[1726553288677,0.0084,58604.0,58603.0,0.5208]
[1726553289189,0.0004,58604.0,58603.0,0.5208]
[1726553289675,0.0024,58604.0,58603.0,0.5218]
[1726553289880,0.0024,58604.0,58603.0,0.607124]
[1726553290485,0.012,58606.0,58605.0,0.085321]
[1726553290777,0.012,58606.0,58605.0,0.085721]
[1726553291082,0.0453,58612.0,58609.0,0.085314]
[1726553291279,0.0453,58612.0,58611.0,0.5212]
[1726553293079,0.0533,58612.0,58611.0,0.5222]
[1726553293471,1.171251,58612.0,58611.0,0.0014]
[1726553293676,1.611251,58612.0,58611.0,0.0014]
[1726553293983,1.622251,58612.0,58611.0,0.0024]
[1726553294575,0.510411,58612.0,58611.0,0.1624]
[1726553295980,0.510411,58612.0,58611.0,0.0024]
[1726553296576,0.510411,58612.0,58611.0,0.1624]
[1726553297086,0.465111,58612.0,58611.0,0.17604]
[1726553298476,0.465111,58612.0,58611.0,0.01604]
[1726553299582,0.465071,58612.0,58611.0,0.01604]
[1726553300180,0.465071,58612.0,58611.0,0.17604]
[1726553304695,0.104271,58612.0,58611.0,0.17604]
[1726553307185,0.01896,58612.0,58611.0,0.261352]
[1726553308979,0.01896,58612.0,58611.0,0.309252]
[1726553309590,0.01896,58612.0,58611.0,0.37694477]
[1726553309785,0.01896,58612.0,58611.0,0.88878477]
[1726553310390,0.3608,58617.0,58611.0,0.22394]
[1726553310587,0.36168,58623.0,58616.0,0.1604]
[1726553310792,0.3608,58623.0,58621.0,0.245697]
[1726553310992,0.3608,58623.0,58622.0,0.0004]
[1726553311291,0.3608,58623.0,58622.0,0.085296]
[1726553312396,0.3748,58623.0,58622.0,0.086296]
[1726553312591,0.3748,58623.0,58622.0,0.001]
[1726553312896,0.3748,58623.0,58622.0,0.002]
[1726553312897,0.460095,58623.0,58622.0,0.002]
[1726553313091,0.54539,58623.0,58622.0,0.002]
[1726553313292,0.90619,58623.0,58622.0,0.002]
[1726553313792,0.82940668,58623.0,58622.0,0.162]
[1726553314603,0.085278,58635.0,58631.0,0.085283]
[1726553314787,0.085275,58637.0,58632.0,0.0004]
[1726553314986,0.085275,58637.0,58636.0,0.0004]
[1726553315304,0.08528,58633.0,58632.0,0.0004]
[1726553315491,0.08529,58626.0,58625.0,0.004]
[1726553315799,0.08529,58626.0,58622.0,0.002]
[1726553315800,0.085295,58623.0,58622.0,0.002]
[1726553315995,0.0004,58623.0,58622.0,0.001]
[1726553316800,0.0004,58623.0,58618.0,0.085301]
[1726553317097,0.0004,58620.0,58618.0,0.085301]
[1726553317491,0.0004,58620.0,58617.0,0.05054238]
[1726553317692,0.444499,58620.0,58619.0,0.00255839]
[1726553318293,0.443499,58620.0,58619.0,0.00255839]
[1726553318496,0.443499,58620.0,58619.0,0.00755839]
[1726553318795,0.443499,58620.0,58619.0,0.00855839]
[1726553320104,0.3582,58620.0,58619.0,0.08885839]
[1726553320292,0.3582,58620.0,58619.0,0.09085839]
[1726553322398,0.3582,58620.0,58619.0,0.00555839]
[1726553324404,0.3582,58620.0,58619.0,0.09085839]
[1726553326903,0.3582,58620.0,58619.0,0.10449839]
[1726553327907,0.3582,58620.0,58619.0,0.01919839]
[1726553329294,0.36335889,58626.0,58619.0,0.01919839]
[1726553329490,0.36335889,58626.0,58625.0,0.1604]
[1726553329696,0.36335889,58626.0,58625.0,0.245692]
[1726553333606,0.44864889,58626.0,58625.0,0.1604]
[1726553336105,0.44864889,58626.0,58625.0,0.0004]
[1726553336404,0.80944889,58626.0,58625.0,0.0004]
[1726553337204,0.94153889,58626.0,58625.0,0.0004]
[1726553340708,0.94153889,58626.0,58625.0,0.01404]
[1726553342404,0.80689,58626.0,58625.0,0.17404]
[1726553343211,0.80689,58626.0,58625.0,0.22468497]
[1726553344606,0.80689,58626.0,58625.0,0.17404]
[1726553345797,0.89218,58626.0,58625.0,0.01404]
[1726553353415,0.17058,58626.0,58625.0,0.01404]
[1726553353615,0.53138,58626.0,58625.0,0.01404]
[1726553353816,0.44609,58626.0,58625.0,0.01404]
[1726553355110,0.53138,58626.0,58625.0,0.01404]
[1726553359610,0.57050897,58626.0,58625.0,0.01404]
[1726553361410,0.57051353,58626.0,58625.0,0.01404]
[1726553361815,0.57051223,58626.0,58625.0,0.01404]
[1726553366726,0.255906,58618.0,58612.0,0.0498]
[1726553366917,0.255906,58618.0,58612.0,0.0458]
[1726553366918,0.085306,58615.0,58612.0,0.0458]
[1726553367214,0.3612,58613.0,58612.0,0.0458]
[1726553367419,0.3608,58613.0,58612.0,0.0458]
[1726553367817,0.085312,58611.0,58610.0,0.12985992]
[1726553368017,0.167024,58611.0,58610.0,0.08465992]
[1726553368518,0.167024,58611.0,58610.0,0.00614]
[1726553368821,0.158024,58611.0,58610.0,0.00614]
[1726553369821,0.149024,58611.0,58610.0,0.00614]
[1726553370023,0.149024,58611.0,58610.0,0.07372625]
[1726553370325,0.149024,58611.0,58610.0,0.08472625]
[1726553370619,0.149024,58611.0,58610.0,0.01714]
[1726553370817,0.150024,58611.0,58610.0,0.02714]
[1726553371922,0.661864,58611.0,58610.0,0.09472625]
[1726553372114,0.661864,58611.0,58610.0,0.02714]
[1726553372309,0.661864,58611.0,58605.0,0.05067058]
[1726553372310,0.085316,58608.0,58605.0,0.05067058]
[1726553372515,0.3612,58606.0,58601.0,0.05067058]
[1726553372711,0.17105,58602.0,58601.0,0.05067058]
[1726553373009,0.170654,58601.0,58600.0,0.05323028]
[1726553373216,0.531854,58601.0,58600.0,0.05323028]
[1726553373514,0.520854,58601.0,58600.0,0.0025597]
[1726553374119,0.509854,58601.0,58600.0,0.0025597]
[1726553374829,0.509854,58601.0,58592.0,0.07158625]
[1726553374830,0.085337,58594.0,58592.0,0.004]
[1726553375018,0.084343,58590.0,58589.0,0.0486]
[1726553375218,0.04204715,58590.0,58589.0,0.0486]
[1726553375523,0.04164715,58590.0,58589.0,0.0486]
[1726553377326,0.085345,58588.0,58587.0,0.0462]
[1726553377510,0.446545,58588.0,58587.0,0.0462]
[1726553381626,0.085745,58588.0,58587.0,0.0462]
[1726553381826,0.085347,58587.0,58586.0,0.24790813]
[1726553382035,0.085747,58587.0,58586.0,0.24790813]
[1726553382527,0.0004,58587.0,58586.0,0.24790813]
[1726553384033,0.0004,58587.0,58586.0,0.29857871]
[1726553384222,0.0004,58587.0,58586.0,0.24790813]
[1726553386421,0.0004,58587.0,58586.0,0.29857871]
[1726553386819,0.0004,58587.0,58586.0,0.24790813]
[1726553389637,0.0004,58587.0,58586.0,0.24782813]
[1726553389832,0.0004,58587.0,58586.0,0.29849871]
[1726553390233,0.0004,58587.0,58586.0,0.24782813]
[1726553390437,0.447023,58590.0,58588.0,0.085345]
[1726553390733,0.446143,58590.0,58589.0,0.0004]
[1726553394643,1.492287,58590.0,58589.0,0.0004]
[1726553394843,2.004327,58590.0,58589.0,0.0004]
[1726553397043,0.806943,58590.0,58589.0,0.0004]
[1726553402039,1.052286,58590.0,58589.0,0.05113377]
[1726553402244,1.052286,58590.0,58589.0,0.0004]
[1726553403242,1.052286,58590.0,58589.0,0.05113377]
[1726553404444,1.052286,58590.0,58589.0,0.0004]
[1726553404644,1.052286,58590.0,58589.0,0.05116878]
[1726553404841,1.052286,58590.0,58589.0,0.0004]
[1726553405047,0.892286,58590.0,58589.0,0.0004]
[1726553405435,0.806943,58590.0,58589.0,0.0004]
[1726553405640,0.806943,58590.0,58589.0,0.05116096]
[1726553405839,0.806943,58590.0,58589.0,0.0004]
[1726553407347,0.966943,58590.0,58589.0,0.0004]
[1726553407942,1.052286,58590.0,58589.0,0.0004]
[1726553409745,0.966943,58590.0,58589.0,0.0004]
[1726553410135,1.052286,58590.0,58589.0,0.0004]
[1726553410341,0.966943,58590.0,58589.0,0.0004]
[1726553411347,0.806943,58590.0,58589.0,0.05116027]
[1726553411535,0.806943,58590.0,58589.0,0.0004]
[1726553412551,0.806943,58590.0,58589.0,0.05114983]
[1726553412849,0.806943,58590.0,58589.0,0.0004]
[1726553416257,0.966943,58590.0,58589.0,0.0004]
[1726553417854,0.806943,58590.0,58589.0,0.0004]
[1726553422848,1.052286,58590.0,58589.0,0.05119259]
[1726553423053,1.99364,58590.0,58588.0,0.05079259]
[1726553423254,1.99364,58590.0,58581.0,0.004]
[1726553423255,0.170708,58582.0,58581.0,0.004]
[1726553423553,0.170708,58582.0,58572.0,0.1080719]
[1726553423554,0.085357,58580.0,58575.0,0.00256079]
[1726553423756,0.446163,58576.0,58575.0,0.00256079]
[1726553424749,0.531526,58576.0,58575.0,0.00256079]
[1726553426259,0.532526,58576.0,58575.0,0.00256079]
[1726553426659,0.085373,58569.0,58568.0,0.004]
[1726553426862,0.3608,58569.0,58566.0,0.16]
[1726553427156,0.3608,58569.0,58567.0,0.0452]
[1726553427157,0.0004,58569.0,58567.0,0.0452]
[1726553428358,0.0014,58569.0,58567.0,0.0452]
[1726553428951,0.0024,58569.0,58567.0,0.0452]
[1726553429354,0.087773,58569.0,58567.0,0.0452]
[1726553430164,0.085375,58568.0,58567.0,0.0452]
[1726553431456,0.086375,58568.0,58567.0,0.0452]
[1726553432161,0.001,58568.0,58567.0,0.0452]
[1726553432478,0.001,58568.0,58567.0,0.335876]
[1726553432755,0.004,58576.0,58575.0,0.085364]
[1726553432954,0.3608,58582.0,58575.0,0.0004]
[1726553433159,0.450149,58586.0,58575.0,0.0004]
[1726553433160,0.44710901,58586.0,58582.0,0.085354]
[1726553433755,0.44710901,58586.0,58582.0,0.177454]
[1726553434154,0.44710901,58586.0,58582.0,0.0921]
[1726553434550,0.01456098,58583.0,58582.0,0.0921]
[1726553435060,0.02556098,58583.0,58582.0,0.0921]
[1726553435261,0.11091398,58583.0,58582.0,0.0921]
[1726553435951,0.11091398,58583.0,58575.0,0.0044]
[1726553435952,0.085363,58576.0,58575.0,0.0044]
[1726553436155,0.085763,58576.0,58575.0,0.0004]
[1726553436356,0.0004,58576.0,58575.0,0.0004]
[1726553437561,0.0004,58576.0,58575.0,0.0014]
[1726553438157,0.0004,58576.0,58575.0,0.0004]
[1726553438363,0.0004,58576.0,58575.0,0.0014]
[1726553439367,0.085763,58576.0,58575.0,0.0014]
[1726553442463,0.171126,58576.0,58575.0,0.0014]
[1726553442860,0.531926,58576.0,58575.0,0.0014]
[1726553443862,0.531926,58576.0,58575.0,0.0004]